Cogmind - Beta 12 @@@ ROGUE MODE // 2023.10.22 @ 13:25:36 Player: Fleshy Vegetable Bird Result: Destroyed by L-31 Rogue with Katana Performance ------------- Evolutions (2) 1000 Regions Visited (5) 1000 Robots Destroyed (67) 335 Value Destroyed (2057) 2057 Prototype IDs (11) 220 Alien Tech Used (0) 0 Bonus (230) 230 TOTAL SCORE: 4842 Bonus ------- High Alert Combat Kills 124 Follower Combat Kills 106 Cogmind --------- Core Integrity 0/550 Matter 270/300 Energy 160/160 System Corruption 8% Temperature Cool (0) Movement Rolling (145) Ox3 Location -8/Storage Parts ------- > --- POWER (1) -------- Light Nuclear Core > --- PROPULSION (3) --- Compact Wheel > --- UTILITY (5) ------ Large Storage Unit Large Storage Unit Melee Analysis Suite > --- WEAPON (2) ------- Advanced EMP Blaster Katana > --- INVENTORY (15) --- Huge Storage Unit Improved Terrain Scanner Precision Assault Rifle Precision Assault Rifle Peak State ------------ > --- POWER ------------ Cooled Ion Engine > --- PROPULSION ------- Wheel Wheel Wheel > --- UTILITY ---------- Large Storage Unit Improved Targeting Computer System Shield > --- WEAPON ----------- Precision Assault Rifle Katana > --- INVENTORY -------- Improved Ion Engine Light Nuclear Core Wheel Armored Wheel Large Storage Unit Huge Storage Unit Improved Terrain Scanner Melee Analysis Suite Precision Assault Rifle Grenade Launcher Missile Launcher Katana Katana Katana [Rating: 23] Favorites ----------- Power Cooled Ion Engine Engine Cooled Ion Engine Power Core Light Nuclear Core Propulsion Wheel Leg Aluminum Leg Wheel Wheel Utility Large Storage Unit Storage Large Storage Unit Processor Improved Targeting Computer Hackware System Shield Protection Light Armor Plating Weapon Assault Rifle Ballistic Gun Assault Rifle Ballistic Cannon Light Cannon Launcher Grenade Launcher Slashing Weapon Katana Build | -11 -10 -10 -9 -8 -8 ------- Run | Jun Mat Min Mat Mat Sto Slots Evolved 4 | . . . 2 2 . Power . | . . . . . . Propulsion 1 | . . . . 1 . Utility 3 | . . . 2 1 . Weapon . | . . . . . . Parts Attached 55 | 7 5 4 12 6 21 Power 5 | 1 . 1 1 . 2 Engine 4 | 1 . 1 1 . 1 Core 1 | . . . . . 1 Reactor . | . . . . . . Propulsion 16 | 3 1 1 3 1 7 Treads . | . . . . . . Leg 2 | . . . . . 2 Wheel 14 | 3 1 1 3 1 5 Hover . | . . . . . . Flight . | . . . . . . Utility 10 | 1 2 . 4 . 3 Device . | . . . . . . Storage 4 | 1 2 . . . 1 Processor 2 | . . . 1 . 1 Hackware 2 | . . . 1 . 1 Protection 2 | . . . 2 . . Artifact . | . . . . . . Weapon 24 | 2 2 2 4 5 9 Energy Gun . | . . . . . . Energy Cannon . | . . . . . . Ballistic Gun 10 | 2 2 1 3 2 . Ballistic Cannon 2 | . . . 1 1 . Launcher 6 | . . 1 . 1 4 Special Weapon . | . . . . . . Impact Weapon . | . . . . . . Slashing Weapon 6 | . . . . 1 5 Piercing Weapon . | . . . . . . Special Melee Weapon . | . . . . . . Unidentified Prototypes 3 | . . . 2 . 1 Parts Lost 25 | . . 1 5 3 16 Power 2 | . . . . . 2 Propulsion 10 | . . . 2 1 7 Utility 5 | . . . 2 1 2 Weapon 8 | . . 1 1 1 5 Highest Loss Streak 6 | . . 1 4 3 6 To Critical Strikes 1 | . . . . . 1 Average Slot Usage (%) 80 | . 85 84 83 75 72 Engine 10 | . 14 14 11 9 4 Leg 1 | . . . . . 8 Wheel 20 | . 28 28 18 24 9 Storage 11 | . 14 14 11 9 9 Processor 7 | . . . 9 9 15 Hackware 2 | . . . 3 . 8 Protection 3 | . . . 8 6 . Ballistic Gun 15 | . 28 14 16 11 1 Ballistic Cannon 2 | . . . 4 5 . Launcher 1 | . . 12 . . . Slashing Weapon 3 | . . . . . 15 Naked Turns . | . . . . . . Heaviest Build 38 | 14 29 30 37 38 37 Greatest Support 30 | 26 20 20 20 30 30 Greatest Overweight (x) 3 | . 1 1 3 1 2 Average Overweight (x) . | . . 1 1 1 1 Largest Inventory Capacity 15 | 8 15 15 15 15 15 Average Capacity 13 | 7 8 15 15 15 15 Most Carried 15 | 5 10 11 14 15 15 Average Carried 9 | 1 6 10 9 14 9 Final Capacity 15 | 8 15 15 15 15 15 Final Carried 15 | 4 10 8 14 15 4 Class Distribution -------------------- 97% | Mutant Dominant Class ---------------- Mutant | -10/Materials Mutant | -10/Mines Mutant | -9/Materials Mutant | -8/Materials Mutant | -8/Storage Resources | -11 -10 -10 -9 -8 -8 ----------- Run | Jun Mat Min Mat Mat Sto Matter Collected 1591 | 145 350 53 582 238 223 Remotely . | . . . . . . Salvage Created 2545 | 111 336 34 632 367 1065 Parts 156 | 11 34 1 39 23 48 Haulers Intercepted 9 | . 1 . 3 3 2 Recyclers Shooed 3 | . . . . . 3 Parts Field Recycled . | . . . . . . Retrieved Matter . | . . . . . . Parts Self-Destructed . | . . . . . . Prevented . | . . . . . . Kills | -11 -10 -10 -9 -8 -8 ------- Run | Jun Mat Min Mat Mat Sto Combat Hostiles Destroyed 45 | . 8 2 8 5 22 Melee 12 | . . . . . 12 Guns 20 | . 8 . 8 4 . AOE 13 | . . 2 . 1 10 Classes Destroyed 11 | 2 5 . 2 1 1 Worker 3 | . 1 . 1 1 . Tunneler 2 | 2 . . . . . Hauler 9 | . 1 . 3 3 2 Recycler 4 | 1 . . 1 . 2 Operator 2 | . 1 . . . 1 Watcher 2 | . . . 1 1 . Swarmer 3 | . 3 . . . . Grunt 32 | . 5 2 4 2 19 Duelist 1 | . . . . 1 . Sentry 8 | . . . 4 2 2 Hunter 1 | . . . . . 1 Best Kill Streak 11 | 2 6 2 3 5 11 Combat Bots Only 10 | . 6 2 3 3 10 Max Kills in Single Turn 4 | 1 1 1 1 1 4 Gunslinging . | . . . . . . Exploded 4 | . . 1 . 1 4 Melee 1 | . . . . . 1 Uniques/NPCs Destroyed . | . . . . . . Combat | -11 -10 -10 -9 -8 -8 -------- Run | Jun Mat Min Mat Mat Sto Damage Taken 2689 | . 232 124 469 503 1361 Core 726 | . 31 27 109 61 498 Absorbed by Shields . | . . . . . . Core Remaining (%) 82 | 100 . 76 72 . . Volleys Fired 140 | 9 39 6 56 25 5 Largest 2 | 2 2 2 2 2 2 Hottest 63 | 40 40 50 58 63 58 Shots Fired 269 | 18 77 8 108 50 8 Gun 232 | 18 77 2 98 34 3 Cannon 24 | . . . 10 14 . Launcher 13 | . . 6 . 2 5 Special . | . . . . . . Kinetic 256 | 18 77 2 108 48 3 Thermal . | . . . . . . Explosive 13 | . . 6 . 2 5 Electromagnetic . | . . . . . . Robot Hit Streak 15 | 3 8 4 15 12 4 Robot Miss Streak 4 | 2 4 . 3 2 1 Penetration Max . | . . . . . . Secondary Targets . | . . . . . . Shots Hit Robots 227 | 9 44 4 76 37 57 Core Hits 122 | 4 18 5 25 19 51 Critical Kills 1 | . . . . 1 . Critical Parts Destroyed 1 | . . . 1 . . Critical Strikes 5 | . . . 1 1 3 Destroy 2 | . . . 1 1 . Sever 3 | . . . . . 3 Melee Attacks 68 | . . . . 1 67 Impact . | . . . . . . Slashing 68 | . . . . 1 67 Piercing . | . . . . . . Sneak Attacks 7 | . . . . . 7 Combat Hostiles . | . . . . . . Follow-up Attacks 5 | . . . . . 5 Damage Inflicted 5848 | 136 555 234 1007 791 3125 Guns 2204 | 136 555 24 897 549 43 Cannons 227 | . . . 110 117 . Explosions 1532 | . . 208 . 125 1199 Melee 1883 | . . . . . 1883 Ramming 2 | . . 2 . . . Kinetic 2431 | 136 555 24 1007 666 43 Thermal . | . . . . . . Explosive 1532 | . . 208 . 125 1199 Electromagnetic . | . . . . . . Impact . | . . . . . . Slashing 1883 | . . . . . 1883 Piercing . | . . . . . . Highest Corruption 8 | . . . 3 . 8 Average Corruption 3 | . . . 2 . 4 Corruption Purged . | . . . . . . Corruption Blocked . | . . . . . . Effects 26 | . . . 15 . 11 Message Errors 6 | . . . 4 . 2 Matter Fused 5 | . . . 3 . 2 Heat Flow Errors 5 | . . . 2 . 3 Energy Discharges 5 | . . . 2 . 3 Parts Rejected 1 | . . . . . 1 Parts Fused 1 | . . . 1 . . Data Loss (minor) 1 | . . . 1 . . Alerts 1 | . . . 1 . . Weapon Failures 1 | . . . 1 . . Overload Shots . | . . . . . . Overflow Damage 39 | . . . 7 . 32 Projectiles 7 | . . . 7 . . Explosions . | . . . . . . Melee 32 | . . . . . 32 Knockbacks 3 | . . . . 3 . Impact . | . . . . . . Kinetic 3 | . . . . 3 . Secondary . | . . . . . . Self-Inflicted Damage 15 | . . 15 . . . Shots 2 | . . 2 . . . Rammed 1 | . . 1 . . . Targets Rammed 1 | . . 1 . . . Kicked . | . . . . . . Crushed . | . . . . . . Highest Temperature 294 | 6 6 4 294 13 205 Average Temperature 80 | 6 3 3 124 5 75 Received Heat Transfer 966 | . 78 33 189 117 549 Siege Activations . | . . . . . . Robots Corrupted . | . . . . . . Combat Hostiles . | . . . . . . Parts Fried . | . . . . . . Impact Corruptions . | . . . . . . Robots Melted . | . . . . . . Combat Hostiles . | . . . . . . Parts Melted . | . . . . . . Heat Transferred . | . . . . . . Parts Sabotaged . | . . . . . . Parts Stolen . | . . . . . . Parts Stripped . | . . . . . . Power Chain Reactions . | . . . . . . Missiles Intercepted . | . . . . . . Alert | -11 -10 -10 -9 -8 -8 ------- Run | Jun Mat Min Mat Mat Sto Peak Influence 675 | 15 307 211 383 349 675 Initial 146 | . 9 58 81 104 146 Average 257 | 5 188 135 247 219 482 Maximum Alert Level 2 | . 1 1 1 1 2 Low Security (%) 38 | 100 50 90 17 48 13 Level 1 46 | . 49 9 82 51 7 Level 2 15 | . . . . . 78 Level 3 . | . . . . . . Level 4 . | . . . . . . Level 5 . | . . . . . . High Security . | . . . . . . Max Security . | . . . . . . Squads Dispatched 11 | . 1 . 2 1 7 Investigation 1 | . . . 1 . . Extermination . | . . . . . . Reinforcement 7 | . 1 . 1 1 4 Assault 1 | . . . . . 1 Garrison 2 | . . . . . 2 Intercept . | . . . . . . Searches Triggered . | . . . . . . Construction Impeded 2 | . . . . 1 1 Haulers Reinforced . | . . . . . . Active Scanning Responses . | . . . . . . Cargo Convoy Interrupts . | . . . . . . Stealth | -11 -10 -10 -9 -8 -8 --------- Run | Jun Mat Min Mat Mat Sto Distress Signals 8 | . 1 . 2 2 3 Communications Jammed . | . . . . . . Distress Signals . | . . . . . . Times Spotted 93 | . 15 5 24 13 36 Peak Tracking Total 13 | . 4 3 5 6 13 Tactical Retreats 3 | . . . 2 . 1 Traps | -11 -10 -10 -9 -8 -8 ------- Run | Jun Mat Min Mat Mat Sto Traps Triggered 9 | . 2 . 4 . 3 Indirectly . | . . . . . . Trap Hack Attempts . | . . . . . . Triggered . | . . . . . . Disarmed . | . . . . . . Reprogrammed . | . . . . . . Reused . | . . . . . . Traps Extracted . | . . . . . . Installed . | . . . . . . Triggered . | . . . . . . Machines | -11 -10 -10 -9 -8 -8 ---------- Run | Jun Mat Min Mat Mat Sto Machines Disabled 4 | . . . 2 1 1 Max in Single Turn 1 | . . . 1 1 1 Garrison Access 1 | . . . . . 1 Machines Repaired . | . . . . . . Machines Sabotaged . | . . . . . . Overloaded Fab Kills . | . . . . . . Hacking | -11 -10 -10 -9 -8 -8 --------- Run | Jun Mat Min Mat Mat Sto Machines Accessed 19 | . 7 . 8 1 3 Terminals 17 | . 7 . 7 1 2 Fabricators . | . . . . . . Repair Stations . | . . . . . . Recycling Units . | . . . . . . Scanalyzers 1 | . . . 1 . . Garrison Access 1 | . . . . . 1 Total Hacks 58 | . 18 . 25 5 10 Successful 29 | . 7 . 15 3 4 Failed 29 | . 11 . 10 2 6 Catastrophic 2 | . 1 . 1 . . Database Lockouts . | . . . . . . Manual 40 | . 16 . 15 3 6 Terminals 53 | . 18 . 21 5 9 Fabricators . | . . . . . . Repair Stations . | . . . . . . Recycling Units . | . . . . . . Scanalyzers 4 | . . . 4 . . Garrison Access 1 | . . . . . 1 Terminal Hacks 10 | . 3 . 5 2 . Part Schematic 1 | . 1 . . . . Robot Analysis 1 | . . . 1 . . Prototype ID Bank 4 | . 1 . 2 1 . Terminal Index 3 | . 1 . 1 1 . Registered Components 1 | . . . 1 . . Fabricator Hacks . | . . . . . . Repair Station Hacks . | . . . . . . Recycling Unit Hacks . | . . . . . . Scanalyzer 4 | . . . 4 . . Insert Component 2 | . . . 2 . . Analyze 2 | . . . 2 . . Garrison Access Hacks 1 | . . . . . 1 Seal Access 1 | . . . . . 1 Unauthorized Hacks 14 | . 4 . 6 1 3 Terminals 14 | . 4 . 6 1 3 Track 2 | . . . . . 2 Botnet 11 | . 4 . 5 1 1 Operators 1 | . . . 1 . . Fabricators . | . . . . . . Repair Stations . | . . . . . . Recycling Units . | . . . . . . Scanalyzers . | . . . . . . Garrison Access . | . . . . . . Data Cores Recovered . | . . . . . . Used . | . . . . . . Hacking Detections 18 | . 7 . 8 1 2 Full Trace Events . | . . . . . . Feedback Events . | . . . . . . Feedback Blocked . | . . . . . . Robot Schematics Acquired . | . . . . . . Robots Built . | . . . . . . Authchips . | . . . . . . Time . | . . . . . . Total Robot Build Rating . | . . . . . . Part Schematics Acquired 3 | . 1 . 2 . . Parts Built . | . . . . . . Authchips . | . . . . . . Time . | . . . . . . Total Part Build Rating . | . . . . . . Parts Repaired . | . . . . . . Time . | . . . . . . Parts Recycled . | . . . . . . Recycled Matter . | . . . . . . Retrieved Matter . | . . . . . . Retrieved Components . | . . . . . . Parts Scanalyzed 2 | . . . 2 . . Part Schematics Acquired 2 | . . . 2 . . Parts Damaged . | . . . . . . Bothacking | -11 -10 -10 -9 -8 -8 ------------ Run | Jun Mat Min Mat Mat Sto Used RIF Installer . | . . . . . . Robots Hacked . | . . . . . . Non-combat . | . . . . . . Combat . | . . . . . . Robot Hacks Applied . | . . . . . . Relay Couplers Released . | . . . . . . Fabnet Peak Effective % . | . . . . . . Robots Rewired . | . . . . . . Allies Hacked . | . . . . . . Hacks Repelled . | . . . . . . Allies | -11 -10 -10 -9 -8 -8 -------- Run | Jun Mat Min Mat Mat Sto Total Allies 3 | . . 3 . . . Largest Group 3 | . . 3 3 . . Highest-Rated Group 40 | . . 40 39 . . Highest-Rated Ally 16 | . . 16 16 . . Total Orders . | . . . . . . Ally Attacks 42 | . . 12 30 . . Total Damage 481 | . . 116 365 . . Kills 6 | . . 3 3 . . Allies Corrupted 1 | . . . 1 . . Allies Melted . | . . . . . . Intel | -11 -10 -10 -9 -8 -8 ------- Run | Jun Mat Min Mat Mat Sto Robot Analysis Total 1 | . . . 1 . . Derelict Logs Recovered 1 | . . 1 . . . Drone Launches . | . . . . . . Drone Recoveries . | . . . . . . Exploration | -11 -10 -10 -9 -8 -8 ------------- Run | Jun Mat Min Mat Mat Sto Turns Passed 2675 | 92 555 292 885 323 528 Spaces Moved 1851 | 46 472 272 628 217 216 Core 5 | 5 . . . . . Treads . | . . . . . . Legs 104 | . . . . . 104 Wheels 1742 | 41 472 272 628 217 112 Hover . | . . . . . . Flight . | . . . . . . Fastest Speed 50 | 50 80 95 95 95 80 Average Speed 99 | 85 82 95 101 95 143 Slowest Speed 190 | 90 95 95 125 95 190 Overloaded Moves . | . . . . . . Propulsion Burnouts . | . . . . . . Robots Hopped . | . . . . . . Cave-ins Triggered . | . . . . . . Exploration Rate (%) 43 | 5 81 58 50 30 35 Regions Visited 5 Branch Regions 2 Pre-discovered Areas 1 | . . 1 . . . Known Exits Taken . | . . . . . . Unknown Exits Taken 5 | 1 1 1 1 1 . Scrap Searched . | . . . . . . Spaces Dug 2 | . . . . 1 1 Terrain Destroyed 81 | . . 38 . 19 24 Melee 2 | . . . . 1 1 Projectile . | . . . . . . AOE 79 | . . 38 . 18 23 Terrain Rammed . | . . . . . . Walls Destroyed . | . . . . . . Machines Disabled . | . . . . . . Actions | -11 -10 -10 -9 -8 -8 --------- Run | Jun Mat Min Mat Mat Sto Total 2329 | 83 565 297 768 282 334 Wait 138 | . 31 12 53 23 19 Move 1846 | 45 471 271 627 216 216 Hop . | . . . . . . Pick Up 61 | 16 14 1 17 7 6 Fast Attach . | . . . . . . Attach 39 | 6 5 1 8 2 17 Detach . | . . . . . . Swap 16 | 1 . 3 4 4 4 Drop 20 | 6 5 2 3 4 . Fire 140 | 9 39 6 56 25 5 Melee 60 | . . . . 1 59 Ram 1 | . . 1 . . . Kick . | . . . . . . Crush . | . . . . . . Escape Stasis 8 | . . . . . 8 Rewire . | . . . . . . Trap . | . . . . . . Miscellaneous . | . . . . . . Route ------- -11/Junkyard -10/Materials (discovered 3 exits: *Mat / [*Min x2]) -10/Mines -9/Materials (discovered 3 exits: *Mat / [*Min x2]) -8/Materials (discovered 2 exits: *Sto x2) -8/Storage History --------- Turn | Location | Event 18 | -11/Junkyard | Discovered new exit (range 15) 93 | -11/Junkyard | Entered Materials 105 | -10/Materials | Discovered new exit (range 16) 302 | -10/Materials | Build established: Mutant 435 | -10/Materials | Discovered new exit (range 13) 490 | -10/Materials | Discovered new exit (range 15) 648 | -10/Materials | Entered Mines 720 | -10/Mines | Assisted by bots powering up and referring to "LRC-V3" 730 | -10/Mines | Learned location of Zion (-6) 923 | -10/Mines | Discovered new exit (range 8) 940 | -10/Mines | Entered Materials 940 | -9/Materials | Accompanied by 3 allies 940 | -9/Materials | Evolved 2 slots: Utility x2 1026 | -9/Materials | Discovered new exit (range 11) 1121 | -9/Materials | Discovered new exit (range 10) 1470 | -9/Materials | Lost 4 parts (1n2u1w) 1723 | -9/Materials | Discovered new exit (range 5) 1825 | -9/Materials | Entered another Materials area 1825 | -8/Materials | Evolved 2 slots: Propulsion x1, Utility x1 1864 | -8/Materials | Discovered new exit (range 16) 1929 | -8/Materials | Discovered new exit (range 6) 2079 | -8/Materials | Lost 3 parts (1n1u1w) 2148 | -8/Materials | Entered Storage 2221 | -8/Storage | Garrison activated, responded to threat 2252 | -8/Storage | Destroyed 10 combat bots 2263 | -8/Storage | Lost 5 parts (1p2n2w) 2313 | -8/Storage | Core integrity fell below 50% 2360 | -8/Storage | Garrison activated, responded to threat 2414 | -8/Storage | Core integrity fell below 20% 2447 | -8/Storage | Lost 3 parts (1p1n1w) 2548 | -8/Storage | First assault squad dispatched 2676 | -8/Storage | Destroyed by L-31 Rogue with Katana Last Messages --------------- 02589_ R-06 Scavenger collects Hover Unit. 02597_ Connecting with Door Terminal... 02628_ System corrupted: Matter fused (-7). 02631_ C-30 ARC bursts open, deploying its payload. 02631_ B-36 Bruiser unfolds itself. 02631_ L-31 Rogue unfolds itself. 02631_ M-28 Smith unfolds itself. 02643_ Critical hit (Smash). 02643_ Imp. Targeting Computer destroyed. 02643_ System corrupted by crushing effect (+4). 02645_ B-36 Bruiser Hammer severed. 02652_ M-28 Smith fits Backup Laser III on B-36 Bruiser. 02657_ G-50 Soldier destroyed. 02659_ Aluminum Leg destroyed. 02663_ Katana follow-up attack on L-31 Rogue. 02663_ L-31 Rogue Imp. Ion Engine severed. 02664_ System Shield destroyed. 02666_ L-31 Rogue Imp. Aluminum Leg severed. 02666_ Katana destroyed. 02675_ B-36 Bruiser overheating. Map ----- +----------------------------------------------------+ | | | ?????????????????????????????????????????????????? | | ?????????????????????????????????????????????????? | | ?????????????????????????????????????????????????? | | ?????????????#####???????????????????????????????? | | ?????????????#!!!????????????????????????????????? | | ?????????????#!!!????????????????????????????????? | | ?????????????#" "##??????????????????????????????? | | ?????????????# T#??????????????????????????????? | | ?????????"######+##??????????????????????????????? | | ?????????" #???????????????????????????????? | | ?????????" ###?????????????????????????????? | | ?????????"#T### !#T#?????????????????????????????? | | ?##############[[#*"]]#??????????????????????????? | | ?# ! ^ +[%+= ]]#??????????????????????????? | | ?# T ^! #[=# "]]#??????????????????????????? | | ?# !! # [######??????????????????????????? | | ?# !! # ###########?????????????????????? | | ?# *# # + ???????????????????? | | ?###"T"## ##### # #?????????????????????? | | ???############ # #?????????????????????? | | ????# ] # %+" "???????????????????????????? | | ????# """ #%%# "!%[!"?#?????????????????????? | | ????# "G" # # "??!!"m#?????????????????????? | | ##### " "!+!%+ """"""l#?????????????????????? | | # % #%%#= b =@*#?????????????????????? | | # """ % %# %###########?????????????????????? | | # """ # # #?????????????????????? | | # """ # # ??????????????????????? | | ###########%%# ????????????????????????? | | ## # # ??????????????????????????? | | !## """ # + ????????????????????????????? | | %[%## """ # # ??????????????????????????????? | | =%! ## """ #^^#???????????????????????????????? | | ###+## + #???????????????????????????????? | | ??# / """ # #???????????????????????????????? | | ??# ## """ # #???????????????????????????????? | | ??# ## """ # #???????????????????????????????? | | ??# T# # #???????????????????????????????? | | ??# #####+##### #???????????????????????????????? | | ??# ##### ##### ?????????????????????????? | | ??# m #??????????????????????????? | | ###/##############???????????????????????????????? | | = %[+ +?????????????????????????????????? | | """%" ### ######?????????????????????????????????? | | """"" ### ###????????????????????????????????????? | | """"" # #????????????????????????????????????? | | # #????????????????????????????????????? | | """"" / #????????????????????????????????????? | | """"" # #????????????????????????????????????? | +----------------------------------------------------+ Best States ------------- Heat Dissipation 31 Energy Generation 14 Energy Capacity 280 Matter Stores 300 Matter Capacity 300 Sight Range 16 Terrain Scan Density 10 Armor Coverage 150 Evasion (%) 44 Targeting Accuracy 6 Melee Accuracy 5 Offensive Hacking 10 Defensive Hacking 10 Item Schematics ----------------- Lrg. Storage Unit | -10/Materials | Hacked Huge Storage Unit | -9/Materials | Scanalyzed Arm. Wheel | -9/Materials | Scanalyzed Robot Schematics ------------------ None Fabricated ------------ Nothing Alien Tech Used ----------------- None Achievements -------------- None Challenges ------------ None Game ------ Seed ForcePortableStreamer Manual? 0 Play Time 00:25:46 Cumulative 321.5 hours Start 2023.10.22 @ 12:59:24 End 2023.10.22 @ 13:25:36 Sessions 1 Manual Loads 0 Difficulty Rogue Special Mode None Game No. 363 Rogue 363 Adventurer 0 Explorer 0 Win Type - Total 6 Types 3/1/1/1/0/0/0/0/0 Lore% 65 Gallery% 79 Achievement% 67 Wizard Run 0 Options --------- ASCII 0 Keyboard 0 Movement Numpad Keybinds 0 Fullscreen 1 Font 24/Smallcaps Map View 76x50 Tactical HUD 1 Map Filters NONE Filters NONE Steam 1 RUN: 1157ace9-a372-4f44-a5f0-e34214768891